{"text_format":"1","workbook":"xlsx","n_sheets":7,"sheets":["регистрация","Задание1","Задание2","Задание3","Задание4","задание5","Источник"],"not_rendered":{"charts":0,"images":6,"macros":1,"external_links":0,"defined_names":0,"comments":2,"pivot_tables":0},"unopened":[],"bounds":{"document_bytes":16777216,"sheet_cells":100000,"rows_first":2000,"rows_last":500,"rows_between":2000,"halvings":0,"cell_chars":16384,"cell_head_chars":4096},"cells_cut":0,"cells_raw":0,"read":"whole","date_system":"1900"}

{"sheet":"регистрация","index":0,"n_rows":17,"n_cols":7,"rows_kept":17,"cut":false,"hidden":false,"merged":[]}
[]
[]
[]
[]
[]
[]
[]
[]
[]
[]
[]
[]
[]
[]
[null,null,null,null,null,null,"Фамилия"]
[null,null,null,null,null,null,"Имя"]
[null,null,null,null,null,null,"Класс"]

{"sheet":"Задание1","index":1,"n_rows":27,"n_cols":13,"rows_kept":27,"cut":false,"hidden":false,"merged":[[20,7,20,8],[21,7,21,8],[22,7,22,8],[20,5,22,6],[26,5,26,6],[4,3,4,4],[12,3,12,4],[20,0,22,0],[20,1,20,3],[21,1,21,3],[22,1,22,3],[19,1,19,3]]}
[null,"Информация и информационные процессы"]
[]
["Выбери подходящие слова из списков"]
[null,"Объекты"]
["макромир",null,{"$f":"IF(OR(B5=\"Здание\",B5=\"Машина\",B5=\"Телевизор\",B5=\"Человек\"),\"!!!\",\"?\")","v":"?"},"микромир",null,null,{"$f":"IF(OR(F5=\"Атом\",F5=\"Молекула\"),\"!!!\",\"?\")","v":"?"},"мегамир",null,{"$f":"IF(OR(I5=\"Солнце\",I5=\"Земля\"),\"!!!\",\"?\")","v":"?"},"Атом","Азбука для слепых","Сахар наложили в воду, со временем сахар растворился"]
[null,null,{"$f":"IF(OR(B6=\"Здание\",B6=\"Машина\",B6=\"Телевизор\",B6=\"Человек\"),\"!!!\",\"?\")","v":"?"},null,null,null,{"$f":"IF(OR(F6=\"Атом\",F6=\"Молекула\"),\"!!!\",\"?\")","v":"?"},null,null,{"$f":"IF(OR(I6=\"Солнце\",I6=\"Земля\"),\"!!!\",\"?\")","v":"?"},"Здание","Аромат сирени","Образовалась новая звезда"]
[null,null,"?",null,null,null,{"$f":"IF(OR(F7=\"Атом\",F7=\"Молекула\"),\"!!!\",\"?\")","v":"?"},null,null,"?","Земля","Географическая карта","Груда камней со временем изменяет свою форму"]
[null,null,"?",null,null,null,"?",null,null,"?","Луна","Гладкий стол","Кролик ест траву"]
[null,null,"?",null,null,null,"?",null,null,"?","Машина","Горячий утюг","Из маленького ростка выросло дерево"]
[null,null,null,null,null,null,null,null,null,null,"Молекула","Дорожный знак","Колебание маятника со временем становятся беспорядоченными"]
[null,null,null,null,null,null,null,null,null,null,"Солнце","Желтый лимон"]
[null,"Виды информации",null,null,null,null,null,null,null,null,"Телевизор","Запах обеда"]
["Обонятельная",null,{"$f":"IF(OR(B13=\"Аромат сирени\",B13=\"Запах обеда\"),\"!!!\",\"?\")","v":"?"},"Тактильная",null,null,{"$f":"IF(OR(F13=\"Азбука для слепых\",F13=\"Гладкий стол\",F13=\"Горячий утюг\",F13=\"Рукопажатие\"),\"!!!\",\"?\")","v":"?"},"Зрительная",null,{"$f":"IF(OR(I13=\"Географическая карта\",I13=\"Дорожный знак\",I13=\"Желтый лимон\"),\"!!!\",\"?\")","v":"?"},"Человек","Рукопажатие"]
[null,null,{"$f":"IF(OR(B14=\"Атомат сирени\",B14=\"Запах обеда\"),\"!!!\",\"?\")","v":"?"},null,null,null,{"$f":"IF(OR(F14=\"Азбука для слепыхе\",F14=\"Гладкий стол\",F14=\"Горячий утюг\",F14=\"Рукопажатие\"),\"!!!\",\"?\")","v":"?"},null,null,{"$f":"IF(OR(I14=\"Географическая карта\",I14=\"Дорожный знак\",I14=\"Желтый лимон\"),\"!!!\",\"?\")","v":"?"}]
[null,null,"?",null,null,null,"?",null,null,"?"]
[null,null,"?",null,null,null,"?",null,null,"?"]
[null,null,"?",null,null,null,"?",null,null,"?"]
[]
[]
[null,"Информационные процессы"]
["Увеличение информации",null,null,null,{"$f":"IF(OR(B21=\"Образовалась новая звезда\",B21=\"Кролик ест траву\",B21=\"Из маленького ростка выросло дерево\"),\"!!!\",\"?\")","v":"?"},"Уменьшение информации",null,null,null,{"$f":"IF(OR(H21=\"Сахар наложили в воду, со временем сахар растворился\",H21=\"Груда камней со временем изменяет свою форму\",H21=\"Колебание маятника со временем становятся беспорядоченными\"),\"!!!\",\"?\")","v":"?"}]
[null,null,null,null,{"$f":"IF(OR(B22=\"Образовалась новая звезда\",B22=\"Кролик ест траву\",B22=\"Из маленького ростка выросло дерево\"),\"!!!\",\"?\")","v":"?"},null,null,null,null,{"$f":"IF(OR(H22=\"Сахар наложили в воду, со временем сахар растворился\",H22=\"Груда камней со временем изменяет свою форму\",H22=\"Колебание маятника со временем становятся беспорядоченными\"),\"!!!\",\"?\")","v":"?"}]
[null,null,null,null,"?",null,null,null,null,"?"]
[]
[]
[]
[null,null,null,null,null,{"$f":"IF(AND(C5=\"!!!\",C6=\"!!!\",C7=\"!!!\",C8=\"!!!\",G5=\"!!!\",G6=\"!!!\",J5=\"!!!\",J6=\"!!!\",E21=\"!!!\",E22=\"!!!\",E23=\"!!!\",J21=\"!!!\",J22=\"!!!\",J23=\"!!!\"),\"Молодец!\",\"Подумай\")","v":"Подумай"}]

{"sheet":"Задание2","index":2,"n_rows":25,"n_cols":16,"rows_kept":25,"cut":false,"hidden":false,"merged":[[4,7,7,7],[9,7,11,7],[13,7,15,7],[17,7,19,7],[4,1,6,1],[9,1,11,1],[13,1,15,1],[17,1,19,1]]}
[]
[]
[null,null,"Каким свойством не обладает данная информация"]
[]
[1,"Учебник по физике за 10 класс для 8 классника",null,null,null,null,5,"Человек севший за руль умеет управлять автомобилем, но не знает правила дорожного движения",null,null,null,null,null,"Понятность"]
[null,null,null,null,null,null,null,null,null,null,null,null,null,"Полезность"]
[null,null,null,null,null,null,null,null,null,null,null,null,null,"Актуальность",6,{"$f":"IF(O7=1,1,0)","v":0}]
[null,null,null,null,null,null,null,null,null,null,null,null,null,"Достоверная",6,{"$f":"IF(O8=2,1,0)","v":0}]
[null,null,null,null,null,null,null,null,null,null,null,null,null,"Полнота",6,{"$f":"IF(O9=1,1,0)","v":0}]
[2,"Учебник по физике за 8 класс для 10 классника",null,null,null,null,6,"Вечером передали прогноз погоды на сегодняшний день ",null,null,null,null,null,null,6,{"$f":"IF(O10=3,1,0)","v":0}]
[null,null,null,null,null,null,null,null,null,null,null,null,null,null,6,{"$f":"IF(O11=5,1,0)","v":0}]
[null,null,null,null,null,null,null,null,null,null,null,null,null,null,6,{"$f":"IF(O12=3,1,0)","v":0}]
[null,null,null,null,null,null,null,null,null,null,null,null,null,null,6,{"$f":"IF(O13=5,1,0)","v":0}]
[3,"Вопрос \"Как пройти\" инстранца, для человека не знающего иностранный язык",null,null,null,null,7,"Отправили телеграмму с просьбой о встрече но не указали № поезда",null,null,null,null,null,null,6,{"$f":"IF(O14=4,1,0)","v":0}]
[null,null,null,null,null,null,null,null,null,null,null,null,null,null,null,{"$f":"SUM(P7:P14)","v":0}]
[]
[]
[4,"Новости в газете за прошлый год",null,null,null,null,8,"Информация в желтой прессе"]
[]
[]
[]
[]
[]
[]
[null,null,null,null,null,{"$f":"IF(P15=8,\"Молодец!\",\"  \")","v":"  "}]

{"sheet":"Задание3","index":3,"n_rows":30,"n_cols":11,"rows_kept":30,"cut":false,"hidden":false,"merged":[[4,6,7,6],[4,7,7,7],[15,1,18,1],[4,0,7,0],[4,1,7,1],[4,3,7,3],[4,4,7,4]]}
[]
[]
[null,"Информационные процессы"]
[]
[null,"Сбор информации",null,null,"Обработка информации",null,null,"Передача информации",null,null,"запись видео на кассету"]
[null,null,null,null,null,null,null,null,null,null,"заучивание стихотворения"]
[null,null,null,null,null,null,null,null,null,null,"звук школьного звонка"]
[null,null,null,null,null,null,null,null,null,null,"измерение температуры"]
[null,null,null,null,null,null,null,null,null,null,"конспектирование урока в тетрадь"]
[null,null,null,null,null,null,null,null,null,null,"наблюдение за звездами"]
[null,null,null,null,null,null,null,null,null,null,"разговор по телефону"]
[null,null,null,null,null,null,null,null,null,null,"решение задачи по математике"]
[null,null,null,null,null,null,null,null,null,null,"сигнал светофора"]
[null,null,null,null,null,null,null,null,null,null,"создание географических карт"]
[null,null,null,null,null,null,null,null,null,null,"создание гороскопов по расположению звезд"]
[null,"Хранение информации",null,null,null,null,null,null,null,null,"чтение книг"]
[]
[]
[]
[]
[]
[]
[null,null,null,null,null,null,null,{"$f":"IF(F28=12,\"молодец!\",\"  \")","v":"  "}]
[]
[]
[]
[]
[null,{"$f":"IF(OR(B11=\"измерение температуры\",B11=\"наблюдение за звездами\",B11=\"чтение книг\"),1,0)","v":0},{"$f":"IF(OR(E11=\"создание географических карт\",E11=\"создание гороскопов по расположению звезд\",E11=\"решение задачи по математике\"),1,0)","v":0},{"$f":"IF(OR(H11=\"сигнал светофора\",H11=\"звук школьного звонка\",H11=\"разговор по телефону\"),1,0)","v":0},{"$f":"IF(OR(B22=\"запись видео на кассету\",B22=\"заучивание стихотворения\",B22=\"конспектирование урока в тетрадь\"),1,0)","v":0},{"$f":"SUM(B28:E30)","v":0}]
[null,{"$f":"IF(OR(B12=\"измерение температуры\",B12=\"наблюдение за звездами\",B12=\"чтение книг\"),1,0)","v":0},{"$f":"IF(OR(E12=\"создание географических карт\",E12=\"создание гороскопов по расположению звезд\",E12=\"решение задачи по математике\"),1,0)","v":0},{"$f":"IF(OR(H12=\"сигнал светофора\",H12=\"звук школьного звонка\",H12=\"разговор по телефону\"),1,0)","v":0},{"$f":"IF(OR(B23=\"запись видео на кассету\",B23=\"заучивание стихотворения\",B23=\"конспектирование урока в тетрадь\"),1,0)","v":0}]
[null,0,0,0,0]

{"sheet":"Задание4","index":4,"n_rows":31,"n_cols":17,"rows_kept":31,"cut":false,"hidden":false,"merged":[]}
[]
[]
[]
[null,null,null,"Разгадай кроссворд. "]
[null,null,null," Ответив правильно все горизонтальные (вертикальные) слова, "]
[null,null,null,"изменится цвет соответствующих ячеек"]
[null,null,null,null,null,null,null,null,null,null,null,null,null,null,3]
[]
[]
[null,null,null,null,null,1]
[]
[null,null,null,null,null,null,null,null,null,null,null,null,6]
[]
[null,null,null,null,null,null,null,null,4]
[null,null,null,null,null,null,null,null,null,null,null,9]
[null,null,null,null,null,null,null,null,5,8,null,null,null,null,null,null,10]
[]
[null,2]
[]
[]
[null,null,null,7]
[]
[]
[]
[]
[]
[]
[]
[]
[null,null,null,null,null,null,"органолептическаяформальныебитдостовернаяхранение"]
[null,null,null,null,null,null,"передачаслухаисточниккодированиеактуальная"]

{"sheet":"задание5","index":5,"n_rows":43,"n_cols":11,"rows_kept":43,"cut":false,"hidden":false,"merged":[[39,10,39,15],[40,2,40,3],[33,1,33,3],[33,10,33,15],[34,10,34,15],[35,2,35,3],[38,1,38,3],[38,10,38,15],[30,2,30,3],[18,1,18,3],[18,10,18,15],[19,10,19,15],[20,2,20,3],[23,1,23,3],[23,10,23,15],[24,10,24,15],[25,2,25,3],[28,1,28,3],[28,10,28,15],[29,10,29,15],[15,2,15,3],[3,1,3,3],[3,10,3,15],[4,10,4,15],[5,2,5,3],[8,1,8,3],[8,10,8,15],[9,10,9,15],[10,2,10,3],[13,1,13,3],[13,10,13,15],[14,10,14,15]]}
[]
[null,"Перевести единицы измерения информации (вводить только число)"]
[]
["1. ","5 Мбайт в байты",null,null,null,null,null,null,null,1,{"$f":"IF(C6=5242880,\"\",IF(C6=\"\",\"\",\"1 Мбайт = 1024 Кбайт\"))","v":""}]
[null,null,null,null,null,null,null,null,null,null,{"$f":"IF(J5=2,\"1 Кбайт = 1024 байт\",\"\")","v":""}]
[]
[null,null,{"$f":"IF(C6=5242880,\"Верно!\",\"\")","v":""}]
[]
["2.",{"$f":"IF(C6=5242880,\"2 Кбайт в биты\",\"\")","v":""},null,null,null,null,null,null,null,1,{"$f":"IF(C11=16384,\"\",IF(C11=\"\",\"\",\"1 Кбайт = 1024 байт\"))","v":""}]
[null,null,null,null,null,null,null,null,null,null,{"$f":"IF(J10=2,\"1 байт = 8 бит\",\"\")","v":""}]
[]
[null,null,{"$f":"IF(C11=16384,\"Верно!\",\"\")","v":""}]
[]
["3.",{"$f":"IF(C11=16384,\"8000 бит в байты\",\"\")","v":""},null,null,null,null,null,null,null,1,{"$f":"IF(C16=1000,\"\",IF(C16=\"\",\"\",\"1 байт = 8 бит\"))","v":""}]
[null,null,null,null,null,null,null,null,null,null,{"$f":"IF(J15=2,\"При переводе из меньшего в большое нужно делить\",\"\")","v":""}]
[]
[null,null,{"$f":"IF(C16=1000,\"Верно!\",\"\")","v":""}]
[]
["4.",{"$f":"IF(C16=1000,\"32768бит в Кбайты\",\"\")","v":""},null,null,null,null,null,null,null,1,{"$f":"IF(C21=4,\"\",IF(C21=\"\",\"\",\"При переводе из меньшего в большое нужно делить\"))","v":""}]
[null,null,null,null,null,null,null,null,null,null,{"$f":"IF(J20=2,\"1 Кбайт = 1024 байт, 1 байт = 8 бит\",\"\")","v":""}]
[]
[null,null,{"$f":"IF(C21=4,\"Верно!\",\"\")","v":""}]
[]
["5.",{"$f":"IF(C21=4,\"2 Гбайт в байты\",\"\")","v":""},null,null,null,null,null,null,null,1,{"$f":"IF(C26=2147483648,\"\",IF(C26=\"\",\"\",\"1 Гбайт = 1024 Мбайт\"))","v":""}]
[null,null,null,null,null,null,null,null,null,null,{"$f":"IF(J25=2,\"Перевести в Мбайты, затем  в Кбайты и в байты\",\"\")","v":""}]
[]
[null,null,{"$f":"IF(C26=2147483648,\"Верно!\",\"\")","v":""}]
[]
["6.",{"$f":"IF(C26=2147483648,\"2048 байт в Кбайты\",\"\")","v":""},null,null,null,null,null,null,null,1,{"$f":"IF(C31=2,\"\",IF(C31=\"\",\"\",\"При переводе из меньшего в большое нужно делить\"))","v":""}]
[null,null,null,null,null,null,null,null,null,null,{"$f":"IF(J30=2,\"1 Кбайт = 1024 байт\",\"\")","v":""}]
[]
[null,null,{"$f":"IF(C31=2,\"Верно!\",\"\")","v":""}]
[]
["7.",{"$f":"IF(C31=2,\"3 Мбайт в Кбайты\",\"\")","v":""},null,null,null,null,null,null,null,1,{"$f":"IF(C36=3072,\"\",IF(C36=\"\",\"\",\"1 Мбайт = 1024 Кбайт\"))","v":""}]
[null,null,null,null,null,null,null,null,null,null,{"$f":"IF(J35=2,\"При переводе из большего в меньшее нужно умножать\",\"\")","v":""}]
[]
[null,null,{"$f":"IF(C36=3072,\"Верно!\",\"\")","v":""}]
[]
["8.",{"$f":"IF(C36=3072,\"8 388 608 бит в Мбайты\",\"\")","v":""},null,null,null,null,null,null,null,1,{"$f":"IF(C41=1,\"\",IF(C41=\"\",\"\",\"Перевести в  байты, в Кбайты, в Мбайты\"))","v":""}]
[null,null,null,null,null,null,null,null,null,null,{"$f":"IF(J40=2,\"1 байт = 8 бит, 1Кбайт = 1024 байт, 1 Мбайт = 1024 Кбайт\",\"\")","v":""}]
[]
[]
[null,null,null,null,null,{"$f":"IF(C41=1,\"Ты справился!\",\"\")","v":""}]

{"sheet":"Источник","index":6,"n_rows":11,"n_cols":1,"rows_kept":11,"cut":false,"hidden":false,"merged":[[6,0,6,2],[9,0,9,2],[9,3,9,6]]}
["ДК «Новые секреты Excel для создания интерактивных дидактических материалов"]
["http://www.moi-universitet.ru/ru/do/directions/mm/Excel2/#.UiRtFX_-vXQ"]
[]
["Картинка с человечком"]
["https://ru.fotolia.com/id/4241092"]
[]
["Картинка пингвина"]
["https://ru.fotolia.com/id/29108330"]
[]
["Картинка со знаком вопроса"]
["http://www.oreninform.ru/list/detail.php?SECTION_ID=1&ID=48900"]